bitfinex/quotes_ETHUSD_20260102
["timestamp","ask_amount","ask_price","bid_price","bid_amount"]
[1767370436428,0.002,3092.6,3092.0,9.27504689]
[1767370436837,0.002,3092.6,3092.2,9.48770541]
[1767370437041,9.20101822,3092.8,3092.0,4.16161546]
[1767370437242,0.002,3092.8,3092.1,9.48770541]
[1767370438831,0.002,3092.8,3092.3,9.48770541]
[1767370439231,9.97898292,3093.1,3092.3,9.48770541]
[1767370439433,0.54884479,3093.1,3092.3,11.08326465]
[1767370439656,9.97898292,3093.1,3092.3,11.08326465]
[1767370440754,0.54884479,3093.1,3092.3,11.08326465]
[1767370440945,10.27813813,3093.4,3092.7,12.72112604]
[1767370441153,10.27813813,3093.4,3092.7,9.48770541]
[1767370441330,9.43013813,3093.2,3092.4,9.48770541]
[1767370441529,9.47055066,3093.1,3092.4,9.48770541]
[1767370441730,9.43013813,3093.4,3092.7,9.48770541]
[1767370441928,9.59892506,3094.3,3093.0,9.48770541]
[1767370442156,9.59892506,3094.3,3093.4,9.48770541]
[1767370442378,0.002,3094.8,3094.0,9.48770541]
[1767370442532,9.41674699,3094.8,3094.0,9.48770541]
[1767370443044,0.16869809,3095.6,3094.4,9.48770541]
[1767370443359,8.73902426,3095.5,3094.4,9.48770541]
[1767370443556,9.41474699,3095.3,3094.4,9.48770541]
[1767370443770,9.41474699,3095.3,3094.1,9.48770541]
[1767370443982,7.90626149,3095.1,3093.8,9.48770541]
[1767370444132,0.04038511,3095.2,3093.8,9.48770541]
[1767370444133,9.39966213,3094.9,3094.0,12.71976657]
[1767370444586,9.39966213,3094.9,3094.1,9.48770541]
[1767370444732,8.86116171,3094.8,3094.1,9.48770541]
[1767370445230,9.43013813,3095.2,3094.3,9.48770541]
[1767370445554,7.89102426,3095.1,3094.0,3.23200117]
[1767370445956,7.89102426,3095.1,3094.0,3.23204267]
[1767370446143,7.89102426,3095.1,3093.9,12.71983178]
[1767370446470,7.89102426,3095.1,3094.0,3.23205237]
[1767370446629,9.41474699,3094.9,3094.0,12.71972865]
[1767370446835,9.41474699,3094.9,3094.1,12.71965111]
[1767370447154,1.1121881,3095.0,3094.2,9.48770541]
[1767370447674,9.00519236,3095.0,3094.2,9.48770541]
[1767370447978,9.43013813,3095.3,3094.2,9.48770541]
[1767370448569,7.89300426,3095.1,3094.2,9.48770541]
[1767370448774,9.43013813,3095.4,3094.2,9.48770541]
[1767370448942,9.43013813,3095.4,3094.4,9.48770541]
[1767370449134,1.02781381,3095.3,3094.4,9.48770541]
[1767370449355,8.92081807,3095.3,3094.4,9.48770541]
[1767370449561,1.02781381,3095.3,3094.4,9.48770541]
[1767370449736,9.43013813,3095.6,3094.4,9.48770541]
[1767370450563,12.66053981,3095.6,3094.4,9.48770541]
[1767370450750,7.89300426,3095.5,3094.3,9.48770541]
[1767370451070,9.41476679,3095.3,3094.4,9.48770541]
[1767370452766,7.90822189,3095.1,3094.2,3.2317629]
[1767370452960,10.19052353,3095.0,3094.1,12.71962784]
[1767370453272,10.19052353,3095.0,3094.2,9.48770541]
[1767370453441,0.79082219,3095.0,3094.2,9.48770541]
[1767370453782,10.27813813,3095.3,3094.2,9.48770541]
[1767370454878,7.89300426,3095.2,3094.2,9.48770541]
[1767370455454,7.89300426,3095.2,3094.3,3.23174869]
[1767370455865,9.41476679,3095.0,3094.1,9.48770541]
[1767370456057,9.41476679,3095.0,3093.8,9.48770541]
[1767370456251,9.41476679,3095.0,3093.7,4.07932178]
[1767370456252,7.90822189,3094.8,3093.9,3.23208905]
[1767370456484,0.94147668,3094.9,3093.9,9.48770541]
[1767370456658,0.94147668,3094.9,3094.3,9.48770541]
[1767370456859,8.83448094,3094.9,3094.3,9.48770541]
[1767370457084,8.83448094,3094.9,3093.7,9.48770541]
[1767370457085,9.41476679,3094.7,3093.7,9.48770541]
[1767370457284,7.90822189,3094.5,3093.5,12.72028425]
[1767370457459,7.90822189,3094.5,3093.5,9.48770541]
[1767370457460,7.92313668,3094.3,3093.5,9.48770541]
[1767370457858,7.92313668,3094.3,3093.5,12.72028356]
[1767370458055,9.43013813,3094.9,3093.6,9.48770541]
[1767370459259,9.43013813,3094.9,3093.8,9.48770541]
[1767370459589,9.43013813,3094.9,3093.7,3.23230925]
[1767370459590,9.41476679,3094.6,3093.7,3.23230925]
[1767370459759,9.41476679,3094.6,3093.8,3.23226978]
[1767370460092,9.41476679,3094.6,3093.5,9.48770541]
[1767370460586,9.41476679,3094.6,3093.8,3.23227008]
[1767370461183,9.41476679,3094.6,3093.9,9.48770541]
[1767370461372,8.92071807,3094.8,3094.0,12.71976746]
[1767370461963,8.92071807,3094.8,3093.7,9.48770541]
[1767370462160,9.41476679,3094.7,3093.7,9.48770541]
[1767370462361,9.41476679,3094.7,3093.9,12.71986676]
[1767370462662,9.41476679,3094.7,3093.5,0.001]
[1767370462663,9.41476679,3094.7,3093.6,9.48770541]
[1767370462899,1.02771381,3094.8,3093.8,3.23223762]
[1767370462900,7.90822189,3094.5,3093.8,3.23223762]
[1767370463099,9.43013813,3094.9,3094.0,9.48770541]
[1767370463589,9.43013813,3094.9,3094.1,9.48770541]
[1767370464178,9.43013813,3094.9,3093.8,9.48770541]
[1767370464377,11.30505194,3094.9,3094.1,9.48770541]
[1767370464585,0.002,3095.1,3094.1,9.48770541]
[1767370464998,9.43013813,3095.5,3094.7,9.48770541]
[1767370465573,9.43013813,3095.5,3094.9,9.48770541]
[1767370466059,9.43013813,3095.5,3094.7,3.23128631]
[1767370466262,9.43013813,3095.5,3094.6,9.58744759]
[1767370466458,8.92289807,3095.4,3094.6,9.58744759]
[1767370466687,8.92289807,3095.4,3094.7,3.2312842]
[1767370466898,0.002,3095.6,3094.8,9.74766889]
[1767370467693,0.002,3095.6,3095.0,9.74766889]
[1767370468291,10.22152577,3096.0,3095.2,9.74766889]
[1767370468862,7.9520205,3095.9,3094.8,9.74766889]
[1767370469189,9.36030071,3095.7,3094.8,9.74766889]
[1767370469378,7.96610331,3095.5,3094.6,9.74766889]
[1767370469579,10.19335873,3095.4,3094.6,9.74766889]
[1767370469773,10.19335873,3095.4,3094.6,12.97908747]
[1767370470294,0.0403838,3095.3,3094.6,9.74766889]
[1767370470467,10.19335873,3095.4,3094.6,12.97907825]
[1767370470669,11.62933756,3095.4,3094.6,12.97908093]
[1767370470966,0.93603007,3095.6,3094.7,9.74766889]
[1767370471165,1.78303007,3095.6,3094.7,9.74766889]
[1767370471596,1.78303007,3095.6,3094.8,12.97889546]
[1767370471760,1.78303007,3095.6,3094.8,9.74766889]
[1767370471961,9.4006819,3095.5,3094.5,12.97913789]
[1767370472200,9.08447451,3095.4,3094.5,12.97913789]
[1767370472361,9.08447451,3095.4,3094.6,12.97908902]
[1767370472562,9.08447451,3095.4,3094.6,9.74766889]
[1767370472766,9.08447451,3095.4,3094.4,3.2315859]
[1767370472980,9.08447451,3095.4,3094.6,3.23137932]
[1767370472981,1.1183712,3095.4,3094.6,3.23137932]
[1767370473198,1.8962897,3095.3,3094.7,9.74766889]
[1767370473403,9.8483102,3095.3,3094.4,9.74766889]
[1767370473770,9.8483102,3095.3,3094.5,12.97920871]
[1767370474001,9.0013102,3095.3,3094.4,3.23159422]
[1767370474201,9.0013102,3095.3,3094.4,12.97926311]
[1767370474369,10.26043173,3095.2,3094.5,9.74766889]
[1767370474977,10.22152577,3095.5,3094.5,9.74766889]
[1767370475802,10.22152577,3095.5,3094.7,9.74766889]
[1767370476169,0.847,3095.5,3094.7,9.74766889]
[1767370477291,10.20730071,3095.5,3094.7,9.74766889]
[1767370478372,10.20730071,3095.5,3094.8,3.23122657]
[1767370478595,8.98683338,3095.4,3094.8,3.23122657]
[1767370479100,10.22352577,3096.0,3094.9,9.74766889]
[1767370479601,7.9520205,3095.9,3094.9,9.74766889]
[1767370480302,9.36030071,3095.7,3094.9,12.97877893]
[1767370480491,0.002,3095.6,3095.0,9.74766889]
[1767370480686,0.93803007,3095.6,3095.0,9.74766889]
[1767370480890,1.78503007,3095.6,3095.0,9.74766889]
[1767370481088,9.75113338,3095.6,3094.8,3.23113705]
[1767370481270,9.75113338,3095.6,3094.6,3.23233804]
[1767370481271,1.78503007,3095.6,3095.0,9.74766889]
[1767370481474,0.849,3095.6,3095.0,9.74766889]
[1767370481667,0.002,3095.6,3095.0,9.74766889]
[1767370481868,10.22152577,3095.9,3095.3,9.74766889]
[1767370482075,0.002,3096.0,3095.3,9.74766889]
[1767370482314,0.002,3096.0,3094.6,0.848]
[1767370482315,8.84337517,3096.0,3095.2,3.23074477]
[1767370482480,0.88453752,3095.9,3095.3,9.74766889]
[1767370482673,0.88453752,3095.9,3095.3,12.9783657]
[1767370483082,0.88453752,3095.9,3095.4,9.74766889]
[1767370483280,0.849,3096.0,3095.4,9.74766889]
[1767370485075,0.849,3096.0,3095.5,9.74766889]
[1767370485273,10.20932051,3096.0,3095.4,3.23058444]
[1767370485494,10.20932051,3096.0,3095.4,9.74766889]
[1767370485670,0.849,3096.0,3095.5,9.74766889]
[1767370486201,0.002,3096.0,3095.5,9.74766889]
[1767370486704,0.002,3096.1,3095.7,9.74766889]
[1767370486893,0.002,3096.4,3095.7,9.74766889]
[1767370488375,0.002,3096.0,3095.7,9.74766889]
[1767370488614,9.37452577,3096.7,3096.1,9.74766889]
[1767370488808,0.847,3096.7,3096.1,9.74766889]
[1767370489124,9.37452577,3097.0,3096.1,9.74766889]
[1767370489125,10.22152577,3097.0,3096.1,10.70886684]
[1767370489415,10.22152577,3097.0,3095.9,3.23006684]
[1767370489624,7.9619205,3096.9,3095.9,3.23006684]
[1767370489909,0.847,3096.8,3095.9,16.20781422]
[1767370490225,9.35845835,3096.7,3095.9,16.20781422]
[1767370490390,9.37452577,3097.1,3096.0,9.74766889]
[1767370490580,9.74445113,3097.0,3096.2,9.74766889]
[1767370491604,8.89745113,3097.0,3096.2,9.74766889]
[1767370491806,0.847,3096.9,3096.2,9.74766889]
[1767370492408,9.3603805,3096.8,3096.1,6.45973966]
[1767370492607,0.847,3097.1,3096.4,9.74766889]
[1767370492914,7.97400237,3097.0,3096.2,3.22972461]
[1767370493214,7.97400237,3097.0,3096.2,12.9773935]
[1767370493919,7.97400237,3097.0,3096.3,9.74766889]
[1767370494699,3.39682088,3097.7,3097.0,9.74766889]
[1767370494700,0.16860624,3097.7,3097.0,9.74766889]
[1767370494898,9.37452577,3097.9,3097.2,9.74766889]
[1767370495586,9.37452577,3097.9,3096.4,9.6886707]
[1767370495587,7.96197855,3097.8,3096.7,9.74766889]
[1767370495798,0.00100104,3097.0,3096.9,9.74766889]
[1767370496004,7.96197855,3097.8,3096.9,9.74766889]
[1767370496628,3.22799454,3097.9,3097.1,9.35492242]
[1767370496919,3.22799454,3097.9,3095.9,5.48160362]
[1767370496920,9.95553713,3097.8,3096.8,9.35492242]
[1767370497135,7.40259007,3098.0,3097.0,9.35492242]
[1767370498805,7.40259007,3098.0,3097.2,9.35492242]
[1767370499717,10.78956568,3098.3,3097.2,9.35492242]
[1767370499906,9.94256568,3098.3,3097.2,9.35492242]
[1767370500216,9.94256568,3098.3,3097.4,9.35492242]
[1767370500423,7.40259007,3098.2,3097.4,9.35492242]
[1767370500622,7.40459007,3098.3,3097.5,3.22841]
[1767370500826,7.40459007,3098.3,3097.4,9.35492242]
[1767370501024,9.91518592,3098.1,3097.4,12.58342164]
[1767370501191,9.91518592,3098.1,3095.9,3.23007621]
[1767370501532,9.91518592,3098.1,3097.3,3.22853254]
[1767370501688,10.76218592,3098.1,3097.3,3.22853254]
[1767370501894,10.76218592,3098.1,3097.4,3.2284808]
[1767370502089,11.06565041,3098.1,3097.3,9.35492242]
[1767370502412,0.04034861,3098.0,3096.9,9.35492242]
[1767370502724,9.89108281,3097.7,3096.3,9.35492242]
[1767370502929,7.52873638,3097.5,3096.3,9.35492242]
[1767370503103,6.4561947,3097.8,3096.3,10.93638863]
[1767370503104,9.86745935,3097.3,3096.3,10.93638863]
[1767370503818,10.71445935,3097.3,3096.1,3.23086983]
[1767370504124,10.71445935,3097.3,3095.5,10.55482951]
[1767370504125,7.55113361,3097.1,3095.5,10.55482951]
[1767370504715,9.84429609,3096.9,3095.7,9.35492242]
[1767370505518,7.57406524,3096.7,3095.7,9.35492242]
[1767370505718,0.847,3096.6,3095.7,9.35492242]
[1767370505937,0.847,3096.6,3095.8,11.25953212]
[1767370506224,0.847,3096.6,3095.6,15.81570546]
[1767370506225,10.66859378,3096.6,3095.6,15.81570546]
[1767370506516,0.75287364,3097.4,3096.0,9.35492242]
[1767370506723,7.52133477,3097.2,3096.2,9.35492242]
[1767370506920,0.847,3097.1,3096.2,9.35492242]
[1767370507138,0.9974191,3097.1,3096.2,9.35492242]
[1767370507292,7.44762561,3097.0,3096.1,6.45973966]
[1767370507501,7.44762561,3097.0,3096.1,4.81133604]
[1767370507739,7.44762561,3097.0,3096.1,17.39612829]
[1767370507893,0.847,3097.0,3096.2,9.35492242]
[1767370508094,0.847,3096.9,3096.2,9.35492242]
[1767370508394,10.82750717,3097.3,3096.4,9.35492242]
[1767370508692,0.002,3098.0,3097.5,9.35492242]
[1767370509619,3.23096665,3097.9,3097.5,9.35492242]
[1767370509999,0.002,3098.3,3097.5,9.35492242]
[1767370510211,0.002,3098.5,3098.0,9.35492242]
[1767370510403,0.002,3098.5,3098.0,10.29041466]
[1767370510600,0.002,3099.3,3098.5,9.35492242]
[1767370510794,0.849,3099.3,3098.6,9.35492242]
[1767370511013,0.34010433,3100.4,3099.0,9.35492242]
[1767370511210,0.34010433,3100.4,3098.5,12.9093706]
[1767370511211,7.60446053,3101.4,3099.3,9.35492242]
[1767370511412,0.003,3101.5,3099.6,9.35492242]
[1767370511726,10.29056568,3105.0,3102.3,9.35492242]
[1767370511913,10.29056568,3105.0,3101.8,0.16]
[1767370511914,10.29056568,3105.0,3104.9,0.16822572]
[1767370512226,9.94056568,3105.9,3105.1,30.0]
[1767370512521,6.43707756,3107.0,3105.6,30.0]
[1767370512522,1.03430384,3105.8,3105.6,30.0]
[1767370512727,0.846,3106.9,3106.2,20.12400104]
[1767370512903,0.846,3106.9,3104.9,6e-08]
[1767370512904,7.86130003,3106.6,3104.9,9.35492248]
[1767370513103,9.89898247,3106.4,3104.9,9.35492248]
[1767370513309,1.80498709,3107.6,3106.4,9.35492242]
[1767370513623,0.18049871,3107.5,3106.4,9.35492242]
[1767370513792,9.91956512,3108.1,3106.4,9.35492242]
[1767370513994,8.18700948,3109.5,3107.1,9.35492242]
[1767370514192,0.00184615,3109.7,3107.1,9.35492242]
[1767370514193,0.846,3109.4,3107.2,19.086099]
[1767370514418,0.00184615,3109.7,3107.5,9.35492242]
[1767370514624,0.00184615,3109.7,3107.7,9.35492242]
[1767370514826,0.00184615,3109.7,3108.1,9.35492242]
[1767370515037,9.90590233,3109.6,3107.3,9.35492242]
[1767370515320,8.2242962,3109.4,3107.3,9.35492242]
[1767370515519,8.2242962,3109.4,3106.4,0.05]
[1767370515520,0.04020197,3109.3,3107.6,9.35492242]
[1767370515745,0.00184615,3109.7,3108.6,9.35492242]
[1767370515930,9.94056568,3113.4,3110.0,9.3529245]
[1767370516239,1.63270388,3115.6,3111.5,9.35492242]
[1767370516240,6.42178268,3114.4,3111.5,9.35492242]
[1767370516436,0.16351222,3114.7,3112.1,30.0]
[1767370516768,3.20926919,3116.0,3113.8,0.43]
[1767370517039,3.25458618,3118.0,3112.8,30.0]
[1767370517040,0.047372,3118.0,3116.3,0.05]
[1767370517240,9.94056568,3117.7,3116.0,0.846]
[1767370517441,0.04900104,3115.8,3114.8,10.19992242]
[1767370517608,0.02462371,3117.1,3115.2,9.35492242]
[1767370517935,9.94056568,3116.9,3114.4,0.1676015]
[1767370518127,9.94056568,3116.9,3115.1,0.66149345]
[1767370518305,9.94056568,3116.6,3114.4,0.16560358]
[1767370518504,9.96518939,3116.5,3114.6,11.84950842]
[1767370518821,0.042048,3115.6,3114.4,0.16560358]
[1767370519030,0.042048,3115.6,3114.2,9.35492242]
[1767370519031,9.94056568,3115.4,3112.6,9.35492242]
[1767370519229,9.75564196,3114.3,3111.1,9.35492242]
[1767370519440,0.87334383,3113.7,3111.2,9.35492242]
[1767370519646,9.57800497,3113.6,3111.9,3.21347086]
[1767370519806,5.38864113,3115.0,3112.0,9.35492242]
[1767370520141,7.53089623,3115.9,3112.8,9.35492242]
[1767370520337,5.38864113,3114.7,3112.1,10.19892242]
[1767370520642,7.50490958,3116.9,3114.9,2.81723207]
[1767370520814,7.50490958,3116.9,3112.2,5.22773564]
[1767370520815,7.43062325,3116.5,3114.7,2.24913588]
[1767370521021,2.24913588,3114.6,3112.9,0.844]
[1767370521323,1.41277499,3114.5,3112.9,3.2124315]
[1767370521642,5.38864113,3114.4,3112.3,9.35492242]
[1767370521840,7.14796968,3114.2,3111.2,9.35492242]
[1767370522132,7.08078646,3114.0,3112.6,1.7]
[1767370522334,0.844,3113.9,3112.6,1.7]
[1767370522542,6.77150524,3114.3,3112.6,1.7]
[1767370522830,0.53886411,3114.3,3112.6,17.48034977]
[1767370523031,7.43182706,3114.6,3112.6,4.91267917]
[1767370523204,7.35899508,3114.8,3112.6,14.26760159]
[1767370523410,0.2207327,3114.7,3112.6,8.12544673]
[1767370523733,0.2914015,3114.2,3112.6,1.7]
[1767370523935,0.844,3114.1,3112.2,3.21308965]
[1767370524232,0.36066398,3113.9,3110.7,9.35492242]
[1767370524405,0.57493051,3113.8,3111.1,14.74356355]
[1767370524606,0.843,3113.9,3111.9,9.35492242]
[1767370524834,0.843,3114.6,3112.3,9.35492242]
[1767370525079,0.843,3114.6,3112.5,9.35492242]
[1767370525334,7.43182706,3115.2,3112.9,9.35492242]
[1767370525516,1.58618271,3115.1,3113.1,9.35492242]
[1767370525712,0.843,3115.4,3113.1,9.35492242]
[1767370525910,0.843,3115.4,3113.2,9.35492242]
[1767370526116,5.38864113,3114.9,3112.1,9.7839455]
[1767370526312,5.38864113,3114.9,3112.3,9.7839455]
[1767370526313,5.38864113,3114.3,3112.3,9.7839455]
[1767370526640,0.08398747,3115.6,3112.0,6.4267352]
[1767370526641,7.50613783,3115.8,3112.5,9.95456463]
[1767370526813,5.38864113,3115.0,3112.7,9.95456463]
[1767370527007,5.38864113,3114.4,3112.1,3.21318416]
[1767370527314,5.60937383,3114.4,3112.0,9.95456463]
[1767370527522,7.21765035,3113.7,3111.5,3.21387827]
[1767370527728,5.74930511,3113.5,3111.6,3.21377915]
[1767370527951,0.57493051,3113.4,3112.5,3.21281715]
[1767370528127,0.843,3113.3,3111.6,9.95456463]
[1767370528330,0.843,3113.4,3112.2,3.21307921]
[1767370528552,8.27482706,3113.4,3112.1,3.21325592]
[1767370528902,8.27482706,3113.4,3111.7,3.21367741]
[1767370529176,0.14862904,3113.3,3110.9,9.95456463]
[1767370529345,8.94354821,3113.2,3111.4,3.21396459]
[1767370529542,8.94354821,3113.2,3111.1,3.21419819]
[1767370529744,0.74155313,3113.2,3111.6,6.42754738]
[1767370529966,0.843,3113.2,3111.5,3.21385776]
[1767370530181,7.43182706,3113.1,3111.3,3.21407275]
[1767370530486,5.38864113,3112.9,3110.6,9.95456463]
[1767370530787,12.8462288,3113.8,3110.2,9.95456463]
[1767370530788,0.2207327,3112.6,3110.2,9.95456463]
[1767370530945,0.843,3112.6,3110.6,9.95456463]
[1767370531151,7.50613783,3113.3,3110.8,9.95456463]
[1767370531375,7.50613783,3113.3,3110.7,2.995934]
[1767370531376,0.843,3113.2,3111.0,9.95456463]
[1767370531576,0.91806138,3113.2,3111.0,9.95456463]
[1767370531780,0.14862904,3112.9,3110.3,9.95456463]
[1767370531954,0.14862904,3112.9,3110.0,9.64630224]
[1767370531955,0.843,3112.8,3110.5,9.95456463]
[1767370532169,8.20199508,3112.8,3110.5,9.95456463]
[1767370532358,0.843,3112.7,3110.6,9.98671276]
[1767370532595,0.843,3112.6,3110.6,9.95456463]
[1767370532770,3.2128514,3112.5,3110.7,3.21471051]
[1767370532944,0.42765841,3112.4,3110.7,3.21471051]
[1767370533144,0.42765841,3112.4,3110.6,9.95456463]
[1767370533345,7.71527087,3112.4,3110.0,3.21540804]
[1767370533549,7.71527087,3112.4,3110.3,3.2150263]
[1767370533751,0.843,3112.3,3110.6,13.16936724]
[1767370534044,0.85582709,3112.2,3110.6,16.3841811]
[1767370534253,0.843,3112.1,3109.6,9.95456463]
[1767370534586,0.85582709,3112.2,3110.5,3.21481537]
[1767370534750,0.85582709,3112.2,3110.1,9.98671793]
[1767370534948,0.843,3112.2,3110.5,9.95456463]
[1767370535173,0.843,3112.3,3110.5,10.79756463]
[1767370535394,0.843,3112.3,3110.5,9.95456463]
[1767370535549,0.07506138,3113.8,3110.8,9.95456463]
[1767370535745,0.07506138,3113.8,3111.0,9.95456463]
[1767370535971,9.24476009,3113.7,3111.2,9.95456463]
[1767370536184,9.24476009,3113.7,3111.3,9.98670553]
[1767370536346,9.24476009,3113.7,3111.3,9.95456463]
[1767370536547,7.35899508,3113.3,3110.5,9.95456463]
[1767370536776,0.2207327,3113.1,3110.6,6.42962772]
[1767370536984,0.2207327,3113.1,3110.5,10.79756463]
[1767370536985,0.2914015,3112.8,3110.5,9.95456463]
[1767370537183,7.21765035,3112.6,3110.6,9.95456463]
[1767370537480,0.842,3112.5,3110.6,9.95456463]
[1767370538076,7.14908049,3112.4,3110.6,9.95456463]
[1767370538657,0.842,3112.5,3110.6,9.95456463]
[1767370538874,1.00330565,3113.0,3111.0,9.95456463]
[1767370539069,7.42798973,3113.0,3111.2,9.95456463]
[1767370539278,1.00330565,3113.0,3111.3,0.0321409]
[1767370539480,7.42801817,3113.0,3111.3,9.98670553]
[1767370539680,7.42801817,3113.0,3111.3,9.95456463]
[1767370539976,3.21162067,3113.7,3111.3,9.95456463]
[1767370539977,3.21178088,3113.6,3111.3,9.95456463]
[1767370540179,6.4974627,3114.1,3111.6,9.95456463]
[1767370540348,0.842,3113.8,3111.8,9.95456463]
[1767370540547,0.842,3113.8,3112.0,9.95456463]
[1767370540849,6.42322638,3113.7,3112.1,13.16782898]
[1767370541049,6.42322638,3113.7,3112.1,16.38109333]
[1767370541050,0.72652264,3113.6,3112.1,16.38109333]
[1767370541252,0.72652264,3113.6,3112.2,9.95456463]
[1767370541950,0.72652264,3113.6,3111.1,7.71303966]
[1767370541951,8.1583497,3113.6,3111.4,9.95456463]
[1767370542158,8.1583497,3113.6,3110.9,9.95456463]
[1767370542159,4.49877119,3113.4,3110.9,9.95456463]
[1767370542456,4.49877119,3113.4,3110.5,0.001]
[1767370542457,7.35899508,3113.2,3110.8,3.21460654]
[1767370542657,7.28761246,3112.8,3110.5,0.87514917]
[1767370542874,0.2914015,3112.6,3110.5,4.09006243]
[1767370543090,7.21765035,3112.4,3110.6,3.21481386]
[1767370543279,10.71857007,3113.0,3111.1,9.95456463]
[1767370543452,0.76185176,3113.1,3111.3,9.95456463]
[1767370543656,6.42447393,3113.1,3111.5,9.95456463]
[1767370543983,7.43182706,3113.0,3111.0,0.08398747]
[1767370544157,7.43182706,3113.0,3111.0,0.11613147]
[1767370544357,7.43182706,3113.0,3111.0,0.95813147]
[1767370544878,0.72652264,3113.6,3111.2,9.95456463]
[1767370544879,8.23266047,3113.6,3111.2,9.95456463]
[1767370545094,8.23266047,3113.6,3111.1,14.14166276]
[1767370545095,7.43182706,3113.4,3111.4,9.95456463]
[1767370545386,7.43182706,3113.4,3111.3,3.28376364]
[1767370545387,0.82326605,3113.5,3111.5,9.98670346]
[1767370545691,0.842,3113.4,3111.5,9.95456463]
[1767370545858,0.842,3113.3,3111.6,9.95456463]
[1767370546059,0.842,3113.3,3111.7,0.03213677]
[1767370546278,0.842,3113.3,3111.7,9.9867014]
[1767370546480,0.842,3113.3,3111.7,9.95456463]
[1767370546690,0.842,3113.3,3111.7,11.79202109]
[1767370547002,7.43182706,3113.9,3111.9,9.95456463]
[1767370547294,7.43182706,3113.9,3112.0,0.842]
[1767370547497,7.43182706,3113.9,3112.1,9.95456463]
[1767370547788,7.50813783,3114.6,3112.7,4.49877119]
[1767370547955,0.002,3114.6,3113.3,9.95456463]
[1767370548155,0.842,3115.6,3113.5,9.95456463]
[1767370548386,0.842,3115.6,3113.7,9.95456463]
[1767370548587,6.41960097,3115.5,3113.7,9.95456463]
[1767370548799,0.7261601,3115.4,3113.8,0.842]
[1767370548998,3.20996372,3115.3,3113.9,3.21140691]
[1767370549285,6.41992744,3115.3,3113.9,9.95456463]
[1767370549588,7.43184686,3115.2,3113.3,9.95456463]
[1767370549885,20.54858979,3115.3,3111.7,0.99545646]
[1767370549886,0.15058944,3115.0,3112.3,9.95456463]
[1767370550184,0.22267388,3114.7,3112.3,9.95456463]
[1767370550383,7.28767069,3114.5,3112.4,10.79656463]
[1767370550596,0.47214451,3114.6,3112.4,10.79656463]
[1767370550597,0.47214451,3114.6,3112.8,9.95456463]
[1767370550893,7.36093626,3114.6,3112.8,9.95456463]
[1767370551053,7.36093626,3114.6,3112.9,13.1669831]
[1767370551259,0.22079093,3114.4,3112.3,10.0385521]
[1767370551461,8.13153481,3114.3,3112.5,10.0385521]
[1767370551715,6.42116414,3114.7,3113.1,9.95456463]
[1767370552066,3.21058207,3114.7,3113.1,9.95456463]
[1767370552388,6.42116414,3114.7,3113.1,9.95456463]
[1767370552878,6.42116414,3114.7,3113.1,13.16672733]
[1767370553056,0.72631641,3114.6,3113.1,16.37895951]
[1767370553262,0.72631641,3114.6,3113.2,9.95456463]
[1767370555175,6.42157648,3114.5,3113.3,9.95456463]
[1767370555309,17.06615218,3114.5,3112.7,9.95456463]
[1767370555523,1.92791511,3114.4,3112.7,9.95456463]
[1767370555728,7.36093626,3114.3,3112.7,9.95456463]
[1767370556014,7.28953481,3113.9,3112.1,9.95456463]
[1767370556313,7.28953481,3113.9,3111.3,3.21504371]
[1767370556314,0.29147837,3113.4,3111.5,9.16143763]
[1767370556618,0.36075913,3112.9,3111.3,0.001]
[1767370556988,3.21254176,3112.8,3111.3,9.16243763]
[1767370557188,0.842,3112.9,3111.5,9.16143763]
[1767370558026,0.76817433,3112.9,3111.5,9.16143763]
[1767370558196,0.76817433,3112.9,3111.7,9.16143763]
[1767370558382,3.69105078,3113.3,3111.3,0.001]
[1767370558383,3.69105469,3113.3,3111.9,9.16143763]
[1767370558583,6.90308442,3113.3,3111.9,9.16143763]
[1767370558798,10.11511415,3113.3,3111.9,9.16143763]
[1767370559554,4.49877119,3114.0,3111.9,9.16143763]
[1767370559555,4.99014412,3114.4,3113.1,9.16043867]
[1767370559693,0.14868783,3114.3,3112.5,9.16143763]
[1767370560015,0.14868783,3114.3,3112.7,9.16143763]
[1767370560191,0.14868783,3114.3,3111.9,3.21339136]
[1767370560387,7.36190585,3114.1,3112.0,9.16143763]
[1767370560614,0.842,3114.0,3112.2,9.16143763]
[1767370560811,6.4217886,3114.4,3112.4,9.16143763]
[1767370560999,0.842,3114.2,3112.6,9.16143763]
[1767370561201,12.84480264,3114.1,3112.6,9.16143763]
[1767370561423,0.14868783,3114.0,3112.1,3.21323945]
[1767370561623,0.14868783,3114.0,3112.0,9.16143763]
[1767370561789,0.22082001,3113.6,3112.0,9.16143763]
[1767370562119,0.842,3113.5,3112.1,9.17830834]
[1767370562308,0.842,3113.5,3112.1,9.16143763]
[1767370562648,8.13249499,3113.5,3111.4,9.16143763]
[1767370562822,4.79028795,3113.2,3111.4,9.16143763]
[1767370563123,3.21233536,3113.0,3111.6,9.16143763]
[1767370563319,3.21233536,3113.0,3111.6,10.00343763]
[1767370563622,3.21233536,3113.0,3111.6,9.16143763]
[1767370563823,6.42178268,3114.4,3111.8,9.16143763]
[1767370563996,0.842,3114.3,3112.2,9.16143763]
[1767370564197,0.72637827,3114.2,3112.4,9.16143763]
[1767370564398,0.72637827,3114.2,3111.7,9.16143763]
[1767370564399,0.07509107,3114.1,3111.7,9.16143763]
[1767370564725,5.22514946,3114.2,3111.7,9.16143763]
[1767370564726,0.72637827,3114.2,3112.2,9.16143763]
[1767370564902,0.72637827,3114.2,3111.4,16.07092771]
[1767370564903,0.72637827,3114.2,3112.4,9.16143763]
[1767370565111,0.72637827,3114.2,3112.6,9.16143763]
[1767370565305,6.42240132,3114.1,3112.8,9.16143763]
[1767370565496,6.42240132,3114.1,3112.8,9.15981763]
[1767370565497,0.71487796,3114.0,3112.8,9.15981763]
[1767370565692,0.71487796,3114.0,3112.8,9.15818763]
[1767370565914,8.14967678,3114.0,3112.2,9.16143763]
[1767370566124,8.14967678,3114.0,3112.4,9.16143763]
[1767370566537,0.71487796,3114.0,3112.7,9.16143763]
[1767370566715,3.21237804,3114.9,3113.3,9.16143763]
[1767370566917,6.42275608,3114.9,3113.4,0.842]
[1767370567143,7.26475608,3114.9,3113.4,10.00343763]
[1767370567327,4.05437804,3114.9,3113.5,3.21181949]
[1767370567530,4.05439694,3114.9,3113.6,9.16143763]
[1767370567727,0.844,3114.9,3113.6,9.16143763]
[1767370567939,10.47516777,3114.9,3113.6,9.16143763]
[1767370568165,9.22443184,3114.8,3111.7,4.49877119]
[1767370568354,9.22443184,3114.7,3112.4,9.16143763]
[1767370568538,9.22443184,3114.2,3112.4,9.16143763]
[1767370568728,9.22443184,3114.2,3111.5,3.21381372]
[1767370568729,10.06643184,3114.1,3111.5,9.16143763]
[1767370569048,9.22443184,3113.9,3111.8,9.16143763]
[1767370569250,9.22443184,3113.5,3111.3,0.001]